Workbook

Sheet 見積書 (hidden)
D1: 御 見 積 書
B7: 何卒宜しくお願い致します。
B9: 合計金額 | C9: =F31 -> 0
B11: ※上記の金額に消費税は含まれていません
B13: 折込日
B14: 広告主 | E14: サイズ
B15: タイトル | F15: =SUM(D21:D26) -> 0
B17: 納品場所 | C17: 株式会社浜松中日サービスセンター
B18: 納品住所 | C18: 浜松市中区西浅田2丁目9-37
B20: 配布地区 | D20: 配布部数 | F20: 金額
F21: =D21*E21 -> 0
F22: 0
F23: 0
F24: 0
F25: 0
F26: 0
F27: 0
F28: =D28*E28 -> 0
F29: 0
F30: 0
B31: 計 | F31: =SUM(F20:G30) -> 0
B33: 【注意事項】
B34: （1）配布の御依頼は必ず書面にてFAX、又はメールにてお願いいたします。
B35: （2）新聞販売店の締切時間以降の中止、変更については別途費用が発生しますので予めご了承下さい。
B36: （3）地震・洪水・大雪など大規模自然災害が発生し、新聞の配達が困難な場合は折込が実施出来ない場合がございます。
B38: 【折込料金お振込口座】
B39: 静岡銀行名塚支店 （普）0062238 | D39: 三菱UFJ銀行 浜松支店（普）0540515
B40: ※お振込の際の手数料はお客様のご負担でお願い申し上げます。

Sheet 静岡県統一部数表
A1: 静岡県折込広告協議会 2024年5月調査
B2: 静岡県統一部数表 2024年下期版
B4: 朝刊折込部数
B6: 【静岡県西部地区】
B7: 部数 | C7: ='配布部数一覧（表題入力）'!C17 -> 285850
B9: 【静岡県中部地区】
B10: 部数 | C10: ='配布部数一覧（表題入力）'!C27 -> 254450
B12: 【静岡県東部地区/伊豆地区】
B13: 部数 | C13: ='配布部数一覧（表題入力）'!J21 -> 251800
B15: 朝刊折込 合計部数 | C15: =C7+C10+C13 -> 792100

Sheet 配布部数一覧（表題入力）
J1: 明細作成日 | K1: =NOW() -> 2024-07-18T16:19:52.260
A2: 広告主名 | D2: サイズ | I2: 折込日
A3: タイトル | D3: 総配布数 | E3: =K29 -> 0 | H3: 枚
A4: 全体摘要 | I4: 納期
A6: 配布部数一覧表（全域）
A8: 静岡県 西部地区 | G8: 静岡県 東部地区/伊豆地区
A9: 地区名 | C9: 取扱部数 | D9: 折込部数 | G9: 地区名 | J9: 取扱部数 | K9: 折込部数
A10: 浜松市①（中日新聞） | C10: =浜松市①!D6 -> 105900 | D10: =浜松市①!G3 -> 0 | G10: 富士宮市・富士市 | J10: =富士宮･富士市!D6 -> 69650 | K10: =富士宮･富士市!G3 -> 0
A11: 浜松市②（合売店） | C11: =浜松市②!D6 -> 73650 | D11: =浜松市②!G3 -> 0 | G11: 沼津市 | J11: =沼津市!D6 -> 49600 | K11: =沼津市!G3 -> 0
A12: 湖西市 | C12: =湖西市!D6 -> 13200 | D12: =湖西市!G3 -> 0 | G12: 三島市 | J12: =三島市･御殿場市･裾野市･駿東郡!D6 -> 38200 | K12: =三島市･御殿場市･裾野市･駿東郡!E9 -> 0
A13: 磐田市 | C13: =磐田市!D6 -> 33100 | D13: =磐田市!G3 -> 0 | G13: 御殿場市 | J13: =三島市･御殿場市･裾野市･駿東郡!K10 -> 13700 | K13: =三島市･御殿場市･裾野市･駿東郡!L10 -> 0
A14: 袋井市・周智郡森町 | C14: =袋井市･森町!D6+袋井市･森町!K6 -> 20750 | D14: =袋井市･森町!G3 -> 0 | G14: 裾野市 | J14: =三島市･御殿場市･裾野市･駿東郡!K24 -> 8500 | K14: =三島市･御殿場市･裾野市･駿東郡!L24 -> 0
A15: 掛川市 | C15: =掛川市!D6 -> 25100 | D15: =掛川市!G3 -> 0 | G15: 駿東郡 | J15: =三島市･御殿場市･裾野市･駿東郡!K31 -> 2100 | K15: =三島市･御殿場市･裾野市･駿東郡!L31 -> 0
A16: 菊川市・御前崎市 | C16: =菊川市･御前崎市!D6+菊川市･御前崎市!K6 -> 14150 | D16: =菊川市･御前崎市!G3 -> 0 | G16: 伊豆市・伊豆の国市 | J16: ='伊豆市･伊豆の国市･下田市(賀茂郡)'!D6 -> 16550 | K16: ='伊豆市･伊豆の国市･下田市(賀茂郡)'!E9 -> 0
A17: 西部地区合計 | C17: =SUM(C10:C16) -> 285850 | D17: =SUM(D10:D16) -> 0 | G17: 下田市（賀茂郡） | J17: ='伊豆市･伊豆の国市･下田市(賀茂郡)'!K6 -> 13650 | K17: ='伊豆市･伊豆の国市･下田市(賀茂郡)'!L9 -> 0
G18: 賀茂郡（西海岸・東海岸） | J18: ='伊豆市･伊豆の国市･下田市(賀茂郡)'!K23 -> 10550 | K18: ='伊豆市･伊豆の国市･下田市(賀茂郡)'!L26 -> 0
G19: 伊東市 | J19: =伊東市･熱海市!D6 -> 22050 | K19: =伊東市･熱海市!E9 -> 0
A20: 静岡県 中部地区 | G20: 熱海市 | J20: =伊東市･熱海市!K6 -> 7250 | K20: =伊東市･熱海市!L9 -> 0
A21: 地区名 | C21: 取扱部数 | D21: 折込部数 | G21: 東部地区合計 | J21: =SUM(J10:J20) -> 251800 | K21: =SUM(K10:L20) -> 0
A22: 牧之原市・榛原郡 | C22: =牧之原市･榛原郡･島田市!D6+牧之原市･榛原郡･島田市!D35 -> 20350 | D22: =牧之原市･榛原郡･島田市!E9+牧之原市･榛原郡･島田市!E38 -> 0
A23: 島田市 | C23: =牧之原市･榛原郡･島田市!K6 -> 18700 | D23: =牧之原市･榛原郡･島田市!L9 -> 0 | G23: 管 外
A24: 藤枝市・焼津市 | C24: =藤枝市･焼津市!D6+藤枝市･焼津市!K6 -> 60700 | D24: =藤枝市･焼津市!E9+藤枝市･焼津市!L9 -> 0 | G24: 配布地区 | I24: 折込部数 | J24: 納品先 | K24: 納品期日
A25: 静岡市①（葵区・駿河区） | C25: =静岡市①!D6 -> 102400 | D25: =静岡市①!G3 -> 0 | G25: =管外入力!A10 -> 0 | I25: =管外入力!D10 -> 0 | J25: =管外入力!G10 -> 0 | K25: =管外入力!H10 -> 0
A26: 静岡市②（清水区） | C26: =静岡市②!D6 -> 52300 | D26: =静岡市②!G3 -> 0 | G26: =管外入力!A11 -> 0 | I26: =管外入力!D11 -> 0 | J26: =管外入力!G11 -> 0 | K26: =管外入力!H11 -> 0
A27: 中部地区合計 | C27: =SUM(C22:C26) -> 254450 | D27: =SUM(D22:D26) -> 0 | G27: =管外入力!A12 -> 0 | I27: =管外入力!D12 -> 0 | J27: =管外入力!G12 -> 0 | K27: =管外入力!H12 -> 0
G29: 総配布数 | J29: =C17+C27+J21 -> 792100 | K29: =D17+D27+K21+I25+I26+I27 -> 0

Sheet 管外入力
A1: ='配布部数一覧（表題入力）'!$A$1 -> 0
A2: 広告主名 | B2: ='配布部数一覧（表題入力）'!B2 ->  | F2: サイズ | G2: ='配布部数一覧（表題入力）'!E2 -> 0 | K2: 折込日 | L2: ='配布部数一覧（表題入力）'!$J$2 -> 00:00:00
A3: タイトル | B3: ='配布部数一覧（表題入力）'!B3 -> 0 | C3: ='配布部数一覧（表題入力）'!C3 -> 0 | F3: 頁 数 | G3: =D9 -> 0 | J3: 枚
A4: 全体摘要 | B4: ='配布部数一覧（表題入力）'!B4 -> 0 | C4: ='配布部数一覧（表題入力）'!C4 -> 0 | F4: 総 数 | G4: ='配布部数一覧（表題入力）'!$E$3 -> 0 | J4: 枚 | K4: 納期 | L4: ='配布部数一覧（表題入力）'!$J$4 -> 00:00:00
A6: 管外【県外委託】
A8: 配布地区 | D8: 折込枚数 | E8: 委託先 | G8: 納品・引取場所 | H8: 発送形態 | J8: 納 期 | L8: 見積額 | M8: 摘 要
D9: =SUM(D10:D20) -> 0 | L9: （税別）

Sheet 浜松市①
A1: ='配布部数一覧（表題入力）'!A1:B1 -> 0
A2: 広告主名 | B2: ='配布部数一覧（表題入力）'!B2:C2 ->  | F2: サイズ | G2: ='配布部数一覧（表題入力）'!E2 -> 0 | K2: 折込日 | L2: ='配布部数一覧（表題入力）'!J2 -> 00:00:00
A3: タイトル | C3: ='配布部数一覧（表題入力）'!B3 -> 0 | F3: 頁 数 | G3: =E9+L9 -> 0 | J3: 枚
A4: 全体摘要 | C4: ='配布部数一覧（表題入力）'!B4 -> 0 | F4: 総 数 | G4: ='配布部数一覧（表題入力）'!K29 -> 0 | J4: 枚 | K4: 納期 | L4: ='配布部数一覧（表題入力）'!J4 -> 00:00:00
A6: 浜松市① 中日新聞： | D6: =D9+K9 -> 105900
A8: 扱紙 | C8: 販売店名 （支店） | D8: 扱 数 | E8: 折込枚数 | F8: 摘要 | H8: 扱紙 | J8: 販売店名 （支店） | K8: 扱 数 | L8: 折込枚数 | M8: 摘要
D9: =D10+D31+D36+D39+D42+D43 -> 55050 | E9: =E10+E31+E36+E39+E42+E43 -> 0 | K9: =K10+K14+K19+K23+K26+K34+K39+K46 -> 50850 | L9: =L10+L14+L19+L23+L26+L34+L39+L46 -> 0
A10: 中日 | B10: 101000 | C10: 浜松中日 | D10: =SUM(D11:D30) -> 36300 | E10: =SUM(E11:E30) -> 0 | H10: 中日 | I10: 211000 | J10: 細江･金原 | K10: =SUM(K11:K13) -> 1900 | L10: =SUM(L11:L13) -> 0
B11: 101001 | C11: 中央 | D11: 2300 | I11: 211001 | J11: 細江気賀 | K11: 1550
B12: 101002 | C12: 六間通 | D12: 1450 | I12: 211002 | J12: 引佐奥山 | K12: 300
B13: 101003 | C13: 曳馬 | D13: 2200 | I13: 211003 | J13: 和光町 | K13: 50
B14: 101004 | C14: 中田 | D14: 1350 | H14: 全 | I14: 213000 | J14: 新都田･井嶋 | K14: =SUM(K15:K18) -> 4900 | L14: =SUM(L15:L18) -> 0
B15: 101005 | C15: 駅南 | D15: 1600 | I15: 213001 | J15: 細江中川・三和 | K15: 1100
B16: 101011 | C16: 白脇 | D16: 2050 | I16: 213002 | J16: 引 佐 | K16: 1900
B17: 101012 | C17: 南陽 | D17: 3700 | I17: 213003 | J17: 都田・新都田 | K17: 1740
B18: 101014 | C18: 西部 | D18: 0 | I18: 213004 | J18: 浜北区 | K18: 160
B19: 101015 | C19: 伊場 | D19: 1400 | H19: 全 | I19: 215000 | J19: 天竜川･小寺 | K19: =SUM(K20:K22) -> 9900 | L19: =SUM(L20:L22) -> 0
B20: 101021 | C20: 浅田 | D20: 1750 | I20: 215001 | J20: バイパス以西 | K20: 7100
B21: 101022 | C21: 山手 | D21: 1500 | I21: 215002 | J21: バイパス以東 | K21: 1970
B22: 101023 | C22: さなる | D22: 1550 | I22: 215003 | J22: ＪＲ以南 | K22: 830
B23: 101024 | C23: 大平台 | D23: 1650 | H23: 中読毎静 | I23: 216000 | J23: 笠井･村木 | K23: =SUM(K24:K25) -> 3900 | L23: =SUM(L24:L25) -> 0
B24: 101025 | C24: 北部 | D24: 4350 | I24: 216001 | J24: 笠井地区 | K24: 3000
B25: 101031 | C25: 高丘 | D25: 1800 | I25: 216002 | J25: 浜北区 | K25: 900
B26: 101032 | C26: 葵 | D26: 0 | H26: 中読毎静 | I26: 218000 | J26: 小松･尾上 | K26: =SUM(K27:K33) -> 12100 | L26: =SUM(L27:L33) -> 0
B27: 101033 | C27: 三方原 | D27: 1750 | I27: 218001 | J27: 有玉店 | K27: 1500
B28: 101034 | C28: 百里 | D28: 1600 | I28: 218002 | J28: 鷺ノ宮 | K28: 1500
B29: 101035 | C29: 湖東 | D29: 2850 | I29: 218003 | J29: 積志店 | K29: 2600
B30: 101042 | C30: 大人見 | D30: 1450 | I30: 218004 | J30: 西ヶ崎店 | K30: 2300
A31: 全 | B31: 201000 | C31: 高塚･鈴木 | D31: =SUM(D32:D35) -> 8900 | E31: =SUM(E32:E35) -> 0 | I31: 218005 | J31: 小松店 | K31: 1300
B32: 201001 | C32: 入野・佐鳴台 | D32: 2650 | I32: 218006 | J32: 内野店 | K32: 1500
B33: 201002 | C33: 可 美 | D33: 2700 | I33: 218007 | J33: 宮口店 | K33: 1400
B34: 201003 | C34: 新 津 | D34: 2640 | H34: 中読毎静 | I34: 220000 | J34: 浜北･富永 | K34: =SUM(K35:K38) -> 6300 | L34: =SUM(L35:L38) -> 0
B35: 201004 | C35: 篠 原 | D35: 910 | I35: 220001 | J35: 貴布祢南・沼 | K35: 1740
A36: 中読毎 | B36: 202000 | C36: 雄踏･小栗 | D36: =SUM(D37:D38) -> 3000 | E36: =SUM(E37:E38) -> 0 | I36: 220002 | J36: 高畑・美薗 | K36: 1710
B37: 202001 | C37: 雄 踏 | D37: 2200 | I37: 220003 | J37: 小林・本沢合・東原 | K37: 1050
B38: 202002 | C38: 志都呂・西鴨江 | D38: 800 | I38: 220004 | J38: 中瀬・豊保 | K38: 1800
A39: 中読毎 | B39: 204000 | C39: 湖南･佐々木 | D39: =SUM(D40:D41) -> 3450 | E39: =SUM(E40:E41) -> 0 | H39: 全 | I39: 221000 | J39: 二俣･大角 | K39: =SUM(K40:K45) -> 11150 | L39: =SUM(L40:L45) -> 0
B40: 204001 | C40: 舞 阪 | D40: 2100 | I40: 221001 | J40: 浜 北 | K40: 2100
B41: 204002 | C41: 馬郡・坪井・篠原 | D41: 1350 | I41: 221002 | J41: 天 竜 | K41: 4750
A42: 全 | B42: 209000 | C42: 三ケ日･丸倉 | D42: 2200 | I42: 221004 | J42: 佐久間 | K42: 150
A43: 全 | B43: 210000 | C43: 都筑･神保 | D43: =SUM(D44:D46) -> 1200 | E43: =SUM(E44:E46) -> 0 | I43: 221003 | J43: 犬居松下店･豊 岡 | K43: 1750
B44: 210001 | C44: 都筑・佐久米 | D44: 700 | I44: 221005 | J44: 犬居松下店：春野･水窪 | K44: 2150
B45: 210002 | C45: 駒場・大谷 | D45: 250 | I45: 221006 | J45: 犬居松下店・龍 山 | K45: 250
B46: 210003 | C46: 大 崎 | D46: 250 | H46: 全 | I46: 222000 | J46: 浦川・松下 | K46: 700

Sheet 浜松市②
A1: ='配布部数一覧（表題入力）'!A1:B1 -> 0
A2: 広告主名 | B2: ='配布部数一覧（表題入力）'!B2:C2 ->  | F2: サイズ | G2: ='配布部数一覧（表題入力）'!E2 -> 0 | K2: 折込日 | L2: ='配布部数一覧（表題入力）'!J2 -> 00:00:00
A3: タイトル | C3: ='配布部数一覧（表題入力）'!B3 -> 0 | F3: 頁 数 | G3: =E9+L9 -> 0 | J3: 枚
A4: 全体摘要 | C4: ='配布部数一覧（表題入力）'!B4 -> 0 | F4: 総 数 | G4: ='配布部数一覧（表題入力）'!K29 -> 0 | J4: 枚 | K4: 納期 | L4: ='配布部数一覧（表題入力）'!J4 -> 00:00:00
A6: 浜松市② 合売店： | D6: =D9+K9 -> 73650
A8: 扱紙 | C8: 販売店名 （支店） | D8: 扱 数 | E8: 折込枚数 | F8: 摘要 | H8: 扱紙 | J8: 販売店名 （支店） | K8: 扱 数 | L8: 折込枚数 | M8: 摘要
D9: =D10+D21+D30+D36+D40 -> 23000 | E9: =E10+E21+E30+E36+E40 -> 0 | K9: =K10+K11+K17+K22+K28+K33+K37 -> 50650 | L9: =L10+L11+L17+L22+L28+L33+L37 -> 0
A10: 朝静 | B10: 104000 | C10: 浜松・よしえ | D10: =SUM(D11:D20) -> 9300 | E10: =SUM(E11:E20) -> 0 | H10: 読静 | I10: 108000 | J10: 浜松読売中央 | K10: 3400
B11: 104001 | C11: 半田 | D11: 0 | I11: 109000 | J11: 浜松読売第一 | K11: =SUM(K12:K16) -> 7800 | L11: =SUM(L12:L16) -> 0
B12: 104002 | C12: 萩丘 | D12: 410 | I12: 109001 | J12: 元浜 | K12: 1500
B13: 104003 | C13: 三方原 | D13: 240 | I13: 109002 | J13: 宮竹 | K13: 1400
B14: 104004 | C14: 海老塚 | D14: 650 | I14: 109003 | J14: 曳馬 | K14: 1600
B15: 104005 | C15: 白羽 | D15: 1170 | I15: 109004 | J15: 上島 | K15: 1600
B16: 104006 | C16: 安松 | D16: 1290 | I16: 109005 | J16: 早出 | K16: 1700
B17: 104007 | C17: 浜団地 | D17: 800 | I17: 110000 | J17: 浜松読売北部 | K17: =SUM(K18:K21) -> 4450 | L17: =SUM(L18:L21) -> 0
B18: 104008 | C18: 三島 | D18: 900 | I18: 110001 | J18: 萩丘 | K18: 1150
B19: 104009 | C19: 神立 | D19: 2230 | I19: 110002 | J19: 高丘 | K19: 950
B20: 104010 | C20: 上島 | D20: 1610 | I20: 110003 | J20: 初生 | K20: 1350
A21: 朝静 | B21: 219000 | C21: 浜北･吉江 | D21: =SUM(D22:D29) -> 5200 | E21: =SUM(E22:E29) -> 0 | I21: 110004 | J21: 三方原 | K21: 1000
B22: 219001 | C22: 笠 井 | D22: 360 | I22: 111000 | J22: 浜松読売西部 | K22: =SUM(K23:K27) -> 9700 | L22: =SUM(L23:L27) -> 0
B23: 219002 | C23: 有 玉 | D23: 1200 | I23: 111001 | J23: 西伊場 | K23: 2700
B24: 219008 | C24: 半 田 | D24: 600 | I24: 111002 | J24: 鹿谷 | K24: 2050
B25: 219003 | C25: 浜北南西 | D25: 1100 | I25: 111003 | J25: 和合 | K25: 1950
B26: 219004 | C26: 浜北南中 | D26: 0 | I26: 111004 | J26: 和合西 | K26: 1350
B27: 219005 | C27: 浜北南東 | D27: 750 | I27: 111005 | J27: 西山 | K27: 1650
B28: 219006 | C28: 浜北北西 | D28: 930 | I28: 112000 | J28: 浜松読売南部 | K28: =SUM(K29:K32) -> 7900 | L28: =SUM(L29:L32) -> 0
B29: 219007 | C29: 浜北北東 | D29: 260 | I29: 112001 | J29: 瓜内 | K29: 1800
A30: 朝静 | B30: 203000 | C30: 舞阪･石塚 | D30: =SUM(D31:D35) -> 4200 | E30: =SUM(E31:E35) -> 0 | I30: 112002 | J30: 向宿 | K30: 2200
B31: 203001 | C31: 雄 踏 | D31: 1200 | I31: 112003 | J31: 安松 | K31: 2900
B32: 203002 | C32: 志都呂・西鴨江 | D32: 450 | I32: 112004 | J32: 遠州浜 | K32: 1000
B33: 203003 | C33: 大人見・大久保 | D33: 800 | H33: 毎静 | I33: 106000 | J33: 浜松毎日・赤間 | K33: =SUM(K34:K36) -> 3300 | L33: =SUM(L34:L36) -> 0
B34: 203004 | C34: 舞 阪 | D34: 650 | I34: 106002 | J34: 寺島 | K34: 1790
B35: 203005 | C35: 馬郡・坪井・篠原 | D35: 1100 | I35: 106003 | J35: 飯田 | K35: 1040
A36: 読朝毎静 | B36: 212000 | C36: 細江･久米 | D36: =SUM(D37:D39) -> 2500 | E36: =SUM(E37:E39) -> 0 | I36: 106004 | J36: 浜団地 | K36: 470
B37: 212001 | C37: 細江気賀 | D37: 1860 | I37: 107000 | J37: 浜松・柳原 | K37: =SUM(K38:K45) -> 14100 | L37: =SUM(L38:L45) -> 0
B38: 212002 | C38: 引佐奥山 | D38: 440 | I38: 107001 | J38: 城北 | K38: 2600
B39: 212003 | C39: 和光町 | D39: 200 | I39: 107002 | J39: 山下 | K39: 0
A40: 読朝毎静 | B40: 214000 | C40: 和地エルイー | D40: 1800 | I40: 107004 | J40: 西塚 | K40: 0
I41: 107011 | J41: 鴨江 | K41: 3100
I42: 107013 | J42: 富塚･大平台 | K42: 1900
I43: 107014 | J43: 萩丘 | K43: 3600
I44: 107023 | J44: 初生
I45: 107024 | J45: 初生･三方原 | K45: 2900

Sheet 湖西市
A1: ='配布部数一覧（表題入力）'!A1:B1 -> 0
A2: 広告主名 | B2: ='配布部数一覧（表題入力）'!B2:C2 ->  | F2: サイズ | G2: ='配布部数一覧（表題入力）'!E2 -> 0 | K2: 折込日 | L2: ='配布部数一覧（表題入力）'!J2 -> 00:00:00
A3: タイトル | C3: ='配布部数一覧（表題入力）'!B3 -> 0 | F3: 頁 数 | G3: =E9+L9 -> 0 | J3: 枚
A4: 全体摘要 | C4: ='配布部数一覧（表題入力）'!B4 -> 0 | F4: 総 数 | G4: ='配布部数一覧（表題入力）'!K29 -> 0 | J4: 枚 | K4: 納期 | L4: ='配布部数一覧（表題入力）'!J4 -> 00:00:00
A6: 浜名湖周辺： | D6: =D9 -> 13200
A8: 扱紙 | C8: 販売店名 （支店） | D8: 扱 数 | E8: 折込枚数 | F8: 摘要
D9: =D10+D13+D17+D21 -> 13200 | E9: =E10+E13+E17+E21 -> 0
A10: 全 | B10: 205000 | C10: 新居･鈴木 | D10: =SUM(D11:D12) -> 5000 | E10: =SUM(E11:E12) -> 0
B11: 205001 | C11: 湖西市 | D11: 4350
B12: 205002 | C12: 浜松市村櫛 | D12: 650
A13: 中読毎 | B13: 206000 | C13: 鷲津･兼子 | D13: =SUM(D14:D16) -> 4100 | E13: =SUM(E14:E16) -> 0
B14: 206001 | C14: 鷲津・古見 | D14: 2470
B15: 206002 | C15: 新所・太田 | D15: 800
B16: 206003 | C16: 入出・知波田 | D16: 830
A17: 朝静 | B17: 207000 | C17: 鷲津･白石 | D17: =SUM(D18:D20) -> 1500 | E17: =SUM(E18:E20) -> 0
B18: 207001 | C18: 鷲 津 | D18: 700
B19: 207003 | C19: 新所・入出・知波田 | D19: 400
B20: 207002 | C20: 新所原 | D20: 400
A21: 中読毎 | B21: 208000 | C21: 新所原･宮崎 | D21: 2600

Sheet 磐田市
A1: ='配布部数一覧（表題入力）'!A1:B1 -> 0
A2: 広告主名 | B2: ='配布部数一覧（表題入力）'!B2:C2 ->  | F2: サイズ | G2: ='配布部数一覧（表題入力）'!E2 -> 0 | K2: 折込日 | L2: ='配布部数一覧（表題入力）'!J2 -> 00:00:00
A3: タイトル | C3: ='配布部数一覧（表題入力）'!B3 -> 0 | F3: 頁 数 | G3: =E9+L9 -> 0 | J3: 枚
A4: 全体摘要 | C4: ='配布部数一覧（表題入力）'!B4 -> 0 | F4: 総 数 | G4: ='配布部数一覧（表題入力）'!K29 -> 0 | J4: 枚 | K4: 納期 | L4: ='配布部数一覧（表題入力）'!J4 -> 00:00:00
A6: 磐田市： | D6: =D9+K9 -> 33100
A8: 扱紙 | C8: 販売店名 （支店） | D8: 扱 数 | E8: 折込枚数 | F8: 摘要 | H8: 扱紙 | J8: 販売店名 （支店） | K8: 扱 数 | L8: 折込枚数 | M8: 摘要
D9: =D10+D20+D27 -> 18700 | E9: =E10+E20+E27 -> 0 | K9: =K10+K17+K22+K23+K27+K31 -> 14400 | L9: =L10+L17+L22+L23+L27+L31 -> 0
A10: 中静 | B10: 301000 | C10: 磐田･鈴木 | D10: =SUM(D11:D19) -> 5700 | E10: =SUM(E11:E19) -> 0 | H10: 朝静 | I10: 304000 | J10: 磐田･吉江 | K10: =SUM(K11:K16) -> 4050 | L10: =SUM(L11:L16) -> 0
B11: 301001 | C11: 新貝･三ヶ野 | D11: 330 | I11: 304001 | J11: 見 付 | K11: 850
B12: 301002 | C12: 大久保 | D12: 660 | I12: 304002 | J12: 城之崎･貝塚 | K12: 420
B13: 301003 | C13: 向 笠 | D13: 430 | I13: 304003 | J13: 中 泉 | K13: 600
B14: 301004 | C14: 今之浦･安久路 | D14: 680 | I14: 304004 | J14: 御殿･二之宮 | K14: 230
B15: 301005 | C15: 見 付 | D15: 1540 | I15: 304005 | J15: 岡田･中野 | K15: 1650
B16: 301006 | C16: 中 泉 | D16: 940 | I16: 304006 | J16: 東新町 | K16: 300
B17: 301008 | C17: 豊 岡 | D17: 270 | H17: 中日 | I17: 305000 | J17: 磐田南部清水 | K17: =SUM(K18:K21) -> 1200 | L17: =SUM(L18:L21) -> 0
B18: 301009 | C18: 豊田・岩田 | D18: 820 | I18: 305001 | J18: 新幹線以北 | K18: 250
B19: 301010 | C19: 袋井市見取 | D19: 30 | I19: 305002 | J19: 新幹線以南 | K19: 530
A20: 読静 | B20: 302000 | C20: 磐田･博報堂 | D20: =SUM(D21:D26) -> 7450 | E20: =SUM(E21:E26) -> 0 | I20: 305003 | J20: 豊 田 | K20: 290
B21: 302001 | C21: 見 付 | D21: 1200 | I21: 305004 | J21: 福 田 | K21: 130
B22: 302002 | C22: 今之浦･城之崎・貝塚 | D22: 1040 | H22: 中日 | I22: 306000 | J22: 豊田･竹内 | K22: 1500
B23: 302003 | C23: 中 泉 | D23: 1250 | H23: 中日 | I23: 307000 | J23: 竜洋･立石 | K23: =SUM(K24:K26) -> 2200 | L23: =SUM(L24:L26) -> 0
B24: 302004 | C24: 豊島･千手堂･鮫島 | D24: 680 | I24: 307001 | J24: 竜 洋 | K24: 1570
B25: 302005 | C25: 豊 田 | D25: 2550 | I25: 307002 | J25: 前野･草崎･小島 | K25: 370
B26: 302006 | C26: 福田南島･小島 | D26: 730 | I26: 307003 | J26: 赤池･本郷 | K26: 260
A27: 毎静 | B27: 303000 | C27: 磐田･新聞堂 | D27: =SUM(D28:D36) -> 5550 | E27: =SUM(E28:E36) -> 0 | H27: 読朝毎静 | I27: 308000 | J27: 竜洋･風間 | K27: =SUM(K28:K30) -> 3050 | L27: =SUM(L28:L30) -> 0
B28: 303001 | C28: 豊 田 | D28: 590 | I28: 308001 | J28: 竜 洋 | K28: 2340
B29: 303002 | C29: 福 田 | D29: 1110 | I29: 308002 | J29: 前野･草崎･小島 | K29: 540
B30: 303003 | C30: 匂坂･豊岡 | D30: 260 | I30: 308003 | J30: 赤池･本郷 | K30: 170
B31: 303004 | C31: 大久保 | D31: 600 | H31: 中静 | I31: 309000 | J31: 福田･寺田 | K31: =SUM(K32:K34) -> 2400 | L31: =SUM(L32:L34) -> 0
B32: 303005 | C32: 見 付 | D32: 1210 | I32: 309001 | J32: 駅南東部 | K32: 700
B33: 303006 | C33: 安久路･明ヶ島 | D33: 510 | I33: 309002 | J33: 福 田 | K33: 1500
B34: 303007 | C34: 中 泉 | D34: 760 | I34: 309003 | J34: 豊 浜 | K34: 200
B35: 303008 | C35: 大原･鎌田 | D35: 310
B36: 303009 | C36: 豊 浜 | D36: 200

Sheet 袋井市･森町
A1: ='配布部数一覧（表題入力）'!A1:B1 -> 0
A2: 広告主名 | B2: ='配布部数一覧（表題入力）'!B2:C2 ->  | F2: サイズ | G2: ='配布部数一覧（表題入力）'!E2 -> 0 | K2: 折込日 | L2: ='配布部数一覧（表題入力）'!J2 -> 00:00:00
A3: タイトル | C3: ='配布部数一覧（表題入力）'!B3 -> 0 | F3: 頁 数 | G3: =E9+L9 -> 0 | J3: 枚
A4: 全体摘要 | C4: ='配布部数一覧（表題入力）'!B4 -> 0 | F4: 総 数 | G4: ='配布部数一覧（表題入力）'!K29 -> 0 | J4: 枚 | K4: 納期 | L4: ='配布部数一覧（表題入力）'!J4 -> 00:00:00
A6: 袋井市： | D6: =D9 -> 17550 | H6: 周智郡森町： | K6: =K9 -> 3200
A8: 扱紙 | C8: 販売店名 （支店） | D8: 扱 数 | E8: 折込枚数 | F8: 摘要 | H8: 扱紙 | J8: 販売店名 （支店） | K8: 扱 数 | L8: 折込枚数 | M8: 摘要
D9: =D10+D11+D15+D18+D23+D29+D33 -> 17550 | E9: =E10+E11+E15+E18+E23+E29+E33 -> 0 | K9: =K10+K11 -> 3200 | L9: =L10+L11 -> 0
A10: 中日 | B10: 310000 | C10: 浅羽･小杉 | D10: 1450 | H10: 中日 | I10: 317000 | J10: 森･山口 | K10: 1000
A11: 中日 | B11: 311000 | C11: 袋井･森下 | D11: =SUM(D12:D14) -> 1800 | E11: =SUM(E12:E14) -> 0 | H11: 読朝毎静 | I11: 318000 | J11: 森･山下 | K11: 2200 | L11: =SUM(L12:L13) -> 0
B12: 311005 | C12: 中心部 | D12: 1100
B13: 311006 | C13: 東名･BP以北堀越 | D13: 350
B14: 311007 | C14: 広岡･国本･愛野 | D14: 350
A15: 中日 | B15: 312000 | C15: 袋井南部松村 | D15: =SUM(D16:D17) -> 1100 | E15: =SUM(E16:E17) -> 0
B16: 312001 | C16: 袋井市南部 | D16: 1050
B17: 312002 | C17: 玉越･西島 | D17: 50
A18: 読朝毎静 | B18: 313000 | C18: 袋井･山下 | D18: =SUM(D19:D22) -> 3300 | E18: =SUM(E19:E22) -> 0
B19: 313001 | C19: 東地区 | D19: 900
B20: 313002 | C20: 西地区 | D20: 940
B21: 313003 | C21: 南地区 | D21: 600
B22: 313004 | C22: 北地区 | D22: 860
A23: 読朝毎静 | B23: 314000 | C23: 袋井･萩田 | D23: =SUM(D24:D28) -> 5100 | E23: =SUM(E24:E28) -> 0
B24: 314002 | C24: 浅 羽 | D24: 2300
B25: 314003 | C25: 柳原・高南団地 | D25: 580
B26: 314004 | C26: 駅前・栄町・三門町 | D26: 380
B27: 314005 | C27: 豊沢・愛野 | D27: 840
B28: 314006 | C28: 新池・川井 | D28: 1000
A29: 読静 | B29: 315000 | C29: 袋井北部尾高 | D29: =SUM(D30:D32) -> 2700 | E29: =SUM(E30:E32) -> 0
B30: 315001 | C30: 袋井市 | D30: 1900
B31: 315002 | C31: 森 町 | D31: 700
B32: 315003 | C32: 磐田市敷地 | D32: 100
A33: 中朝毎 | B33: 316000 | C33: 袋井北部村松 | D33: =SUM(D34:D36) -> 2100 | E33: =SUM(E34:E36) -> 0
B34: 316001 | C34: 袋井市 | D34: 1480
B35: 316002 | C35: 森 町 | D35: 450
B36: 316003 | C36: 磐田市敷地 | D36: 170

Sheet 掛川市
A1: ='配布部数一覧（表題入力）'!A1:B1 -> 0
A2: 広告主名 | B2: ='配布部数一覧（表題入力）'!B2:C2 ->  | F2: サイズ | G2: ='配布部数一覧（表題入力）'!E2 -> 0 | K2: 折込日 | L2: ='配布部数一覧（表題入力）'!J2 -> 00:00:00
A3: タイトル | C3: ='配布部数一覧（表題入力）'!B3 -> 0 | F3: 頁 数 | G3: =E9+L9 -> 0 | J3: 枚
A4: 全体摘要 | C4: ='配布部数一覧（表題入力）'!B4 -> 0 | F4: 総 数 | G4: ='配布部数一覧（表題入力）'!K29 -> 0 | J4: 枚 | K4: 納期 | L4: ='配布部数一覧（表題入力）'!J4 -> 00:00:00
A6: 掛川市： | D6: =D9+K9 -> 25100
A8: 扱紙 | C8: 販売店名 （支店） | D8: 扱 数 | E8: 折込枚数 | F8: 摘要 | H8: 扱紙 | J8: 販売店名 （支店） | K8: 扱 数 | L8: 折込枚数 | M8: 摘要
D9: =D10+D14+D18+D30 -> 9550 | E9: =E10+E14+E18+E30 -> 0 | K9: =K22+K30+K10 -> 15550 | L9: =L10+L22+L30 -> 0
A10: 全 | B10: 319000 | C10: 横須賀･松浦 | D10: =SUM(D11:D13) -> 3050 | E10: =SUM(E11:E13) -> 0 | H10: 毎静 | I10: 323000 | J10: 掛川･風間 | K10: =SUM(K11:K21) -> 5450 | L10: =SUM(L11:L21) -> 0
B11: 319001 | C11: 掛川市大須賀 | D11: 2240 | I11: 323001 | J11: 駅北周辺部 | K11: 650
B12: 319002 | C12: 袋井市浅羽 | D12: 310 | I12: 323002 | J12: 駅 南 | K12: 1120
B13: 319003 | C13: 袋井市笠原 | D13: 500 | I13: 323003 | J13: 城 北 | K13: 350
A14: 全 | B14: 320000 | C14: 大東･松浦 | D14: =SUM(D15:D17) -> 2550 | E14: =SUM(E15:E17) -> 0 | I14: 323004 | J14: 水垂・葛ヶ丘 | K14: 640
B15: 320001 | C15: 掛川市千浜 | D15: 600 | I15: 323005 | J15: 西 郷 | K15: 460
B16: 320002 | C16: 掛川市大坂 | D16: 1450 | I16: 323006 | J16: 桜 木 | K16: 420
B17: 320003 | C17: 掛川市中 | D17: 500 | I17: 323007 | J17: 曽 我 | K17: 450
A18: 中日 | B18: 321000 | C18: 掛川･松本 | D18: =SUM(D19:D29) -> 2700 | E18: =SUM(E19:E29) -> 0 | I18: 323008 | J18: 葛川・西山口 | K18: 510
B19: 321003 | C19: 駅北口周辺 | D19: 528 | I19: 323009 | J19: 大東･佐束 | K19: 370
B20: 321004 | C20: 城 北 | D20: 144 | I20: 323010 | J20: 土 方 | K20: 295
B21: 321005 | C21: 大 池 | D21: 245 | I21: 323011 | J21: 入山瀬 | K21: 185
B22: 321006 | C22: 葛ヶ丘･西山口 | D22: 492 | H22: 読静 | I22: 324000 | J22: 掛川･外山 | K22: =SUM(K23:K29) -> 6350 | L22: =SUM(L23:L29) -> 0
B23: 321007 | C23: 桜 木 | D23: 543 | I23: 324001 | J23: 中心部 | K23: 900
B24: 321008 | C24: 西 郷 | D24: 152 | I24: 324002 | J24: 駅 南 | K24: 755
B25: 321009 | C25: 初馬･倉真 | D25: 85 | I25: 324003 | J25: 二瀬川・大池・谷の口 | K25: 1450
B26: 321010 | C26: 日 坂 | D26: 57 | I26: 324004 | J26: 初馬・西郷 | K26: 800
B27: 321011 | C27: 曽 我 | D27: 138 | I27: 324005 | J27: 倉 真 | K27: 350
B28: 321012 | C28: 和田岡 | D28: 94 | I28: 324006 | J28: 桜 木 | K28: 1545
B29: 321013 | C29: 原 谷 | D29: 222 | I29: 324007 | J29: 和田岡 | K29: 550
A30: 中日 | B30: 322000 | C30: 掛川駅南武藤 | D30: =SUM(D31:D32) -> 1250 | E30: =SUM(E31:E32) -> 0 | H30: 朝静 | I30: 325000 | J30: 掛川･神谷 | K30: =SUM(K31:K36) -> 3750 | L30: =SUM(L31:L36) -> 0
B31: 322001 | C31: 掛川市駅南 | D31: 1000 | I31: 325001 | J31: 中心部 | K31: 690
B32: 322002 | C32: 大 東 | D32: 250 | I32: 325002 | J32: 原野谷 | K32: 870
I33: 325003 | J33: 国北・旭ヶ丘 | K33: 600
I34: 325004 | J34: 宮脇・山口・逆川 | K34: 1040
I35: 325005 | J35: 日坂・東山 | K35: 250
I36: 325006 | J36: 上内田 | K36: 300

Sheet 菊川市･御前崎市
A1: ='配布部数一覧（表題入力）'!A1:B1 -> 0
A2: 広告主名 | B2: ='配布部数一覧（表題入力）'!B2:C2 ->  | F2: サイズ | G2: ='配布部数一覧（表題入力）'!E2 -> 0 | K2: 折込日 | L2: ='配布部数一覧（表題入力）'!J2 -> 00:00:00
A3: タイトル | C3: ='配布部数一覧（表題入力）'!B3 -> 0 | F3: 頁 数 | G3: =E9+L9 -> 0 | J3: 枚
A4: 全体摘要 | C4: ='配布部数一覧（表題入力）'!B4 -> 0 | F4: 総 数 | G4: ='配布部数一覧（表題入力）'!K29 -> 0 | J4: 枚 | K4: 納期 | L4: ='配布部数一覧（表題入力）'!J4 -> 00:00:00
A6: 菊川市： | D6: =D9 -> 9700 | H6: 御前崎市： | K6: =K9 -> 4450
A8: 扱紙 | C8: 販売店名 （支店） | D8: 扱 数 | E8: 折込枚数 | F8: 摘要 | H8: 扱紙 | J8: 販売店名 （支店） | K8: 扱 数 | L8: 折込枚数 | M8: 摘要
D9: =D10+D11+D15+D19 -> 9700 | E9: =E10+E11+E15+E19 -> 0 | K9: =K10+K17+K21 -> 4450 | L9: =L10+L17+L21 -> 0
A10: 中日 | B10: 326000 | C10: 菊川･斎藤 | D10: 1500 | H10: 中日 | I10: 330000 | J10: 御前崎･増田 | K10: =SUM(K11:K16) -> 1850 | L10: =SUM(L11:L16) -> 0
A11: 読朝毎静 | B11: 327000 | C11: 菊川･山本 | D11: =SUM(D12:D14) -> 3650 | E11: =SUM(E12:E14) -> 0 | I11: 330001 | J11: 池新田地区 | K11: 480
B12: 327001 | C12: 牧之原 | D12: 350 | I12: 330002 | J12: 佐倉地区 | K12: 305
B13: 327002 | C13: 東名以南 | D13: 300 | I13: 330003 | J13: 高 松 | K13: 200
B14: 327003 | C14: 東名以北 | D14: 3000 | I14: 330004 | J14: 朝比奈 | K14: 215
A15: 中日 | B15: 328000 | C15: 小笠･永田 | D15: =SUM(D16:D18) -> 1350 | E15: =SUM(E16:E18) -> 0 | I15: 330005 | J15: 新 野 | K15: 250
B16: 328001 | C16: 小 笠 | D16: 1030 | I16: 330006 | J16: 御前崎地区 | K16: 400
B17: 328002 | C17: 菊川市南部 | D17: 280 | H17: 読朝毎静 | I17: 331000 | J17: 浜岡･西郷 | K17: =SUM(K18:K20) -> 1500 | L17: =SUM(L18:L20) -> 0
B18: 328003 | C18: 西之谷 | D18: 40 | I18: 331001 | J18: 佐 倉 | K18: 550
A19: 読朝毎静 | B19: 329000 | C19: 菊川･松下 | D19: =SUM(D20:D21) -> 3200 | E19: =SUM(E20:E21) -> 0 | I19: 331002 | J19: 池新田 | K19: 700
B20: 329001 | C20: 小 笠 | D20: 1650 | I20: 331003 | J20: 朝比奈 | K20: 250
B21: 329002 | C21: 菊川南部 | D21: 1550 | H21: 読朝毎静 | I21: 332000 | J21: 浜岡･岡村 | K21: =SUM(K22:K26) -> 1100 | L21: =SUM(L22:L26) -> 0
I22: 332001 | J22: 池新田 | K22: 650
I23: 332002 | J23: 塩 原 | K23: 100
I24: 332003 | J24: 合 戸 | K24: 100
I25: 332004 | J25: 新 野 | K25: 150
I26: 332005 | J26: 門 屋 | K26: 100

Sheet 牧之原市･榛原郡･島田市
A1: ='配布部数一覧（表題入力）'!A1:B1 -> 0
A2: 広告主名 | B2: ='配布部数一覧（表題入力）'!B2:C2 ->  | F2: サイズ | G2: ='配布部数一覧（表題入力）'!E2 -> 0 | K2: 折込日 | L2: ='配布部数一覧（表題入力）'!J2 -> 00:00:00
A3: タイトル | C3: ='配布部数一覧（表題入力）'!B3 -> 0 | F3: 頁 数 | G3: =E9+E38+L9 -> 0 | J3: 枚
A4: 全体摘要 | C4: ='配布部数一覧（表題入力）'!B4 -> 0 | F4: 総 数 | G4: ='配布部数一覧（表題入力）'!K29 -> 0 | J4: 枚 | K4: 納期 | L4: ='配布部数一覧（表題入力）'!J4 -> 00:00:00
A6: 牧之原市/榛原郡： | D6: =D9 -> 17350 | H6: 島田市： | K6: =K9 -> 18700
A8: 扱紙 | C8: 販売店名 （支店） | D8: 扱 数 | E8: 折込枚数 | F8: 摘要 | H8: 扱紙 | J8: 販売店名 （支店） | K8: 扱 数 | L8: 折込枚数 | M8: 摘要
D9: =D10+D17+D21+D22+D25+D28 -> 17350 | E9: =E10+E17+E21+E22+E25+E28 -> 0 | K9: =K10+K13+K22+K32 -> 18700 | L9: =L10+L13+L22+L32 -> 0
A10: 読朝毎静 | B10: 402000702002 | C10: 吉田･塚本 | D10: =SUM(D11:D16) -> 7700 | E10: =SUM(E11:E16) -> 0 | H10: 中日 | I10: 415000701001 | J10: 島田･赤井 | K10: =SUM(K11:K12) -> 700 | L10: =SUM(L11:L12) -> 0
B11: 402001 | C11: 住吉 | D11: 2100 | I11: 415001 | J11: 大井川以北 | K11: 450
B12: 402002 | C12: 片岡 | D12: 1000 | I12: 415002 | J12: 初 倉 | K12: 250
B13: 402003 | C13: 川尻 | D13: 1300 | H13: 朝静 | I13: 416000701002 | J13: 島田･ﾔﾌﾞｻﾞｷ | K13: =SUM(K14:K21) -> 5700 | L13: =SUM(L14:L21) -> 0
B14: 402004 | C14: 神戸･大幡 | D14: 1600 | I14: 416001 | J14: 伊久美 | K14: 700
B15: 402005 | C15: 牧之原市坂部 | D15: 500 | I15: 416002 | J15: 向谷・中溝・旗指 | K15: 280
B16: 402006 | C16: 島田市初倉 | D16: 1200 | I16: 416003 | J16: 稲荷・三ツ谷 | K16: 630
A17: 読朝毎静 | B17: 404000702004 | C17: 榛原･内藤 | D17: =SUM(D18:D20) -> 3550 | E17: =SUM(E18:E20) -> 0 | I17: 416004 | J17: 元島田・中河・野田 | K17: 1040
B18: 404001 | C18: 静波 | D18: 1250 | I18: 416005 | J18: 向島・本通・市街地 | K18: 850
B19: 404002 | C19: 細江 | D19: 1600 | I19: 416007 | J19: 横井 | K19: 370
B20: 404003 | C20: 勝間田･勝俣 | D20: 700 | I20: 416009 | J20: 南･旭町･御仮屋町 | K20: 380
A21: 中日 | B21: 405000702005 | C21: 相良･尾形 | D21: 400 | I21: 416010 | J21: 初倉 | K21: 1450
A22: 読朝毎静 | B22: 406000702006 | C22: 相良･松下 | D22: =SUM(D23:D24) -> 1600 | E22: =SUM(E23:E24) -> 0 | H22: 読毎静 | I22: 417000701003 | J22: 島田･浅野 | K22: =SUM(K23:K31) -> 8200 | L22: =SUM(L23:L31) -> 0
B23: 406001 | C23: 牧之原市 | D23: 1480 | I23: 417001 | J23: 伊太･向谷 | K23: 1050
B24: 406002 | C24: 御前崎･菊川 | D24: 120 | I24: 417002 | J24: 中央町･中溝 | K24: 1050
A25: 読朝毎静 | B25: 407000702007 | C25: 相良･牧野 | D25: =SUM(D26:D27) -> 1600 | E25: =SUM(E26:E27) -> 0 | I25: 417003 | J25: 元島田・中河 | K25: 1000
B26: 407001 | C26: 牧之原市 | D26: 1300 | I26: 417004 | J26: 向島・河原 | K26: 650
B27: 407002 | C27: 比木 | D27: 300 | I27: 417005 | J27: 島田駅北 | K27: 800
A28: 読朝毎静 | B28: 408000702008 | C28: 地頭方･山下 | D28: =SUM(D29:D30) -> 2500 | E28: =SUM(E29:E30) -> 0 | I28: 417007 | J28: 島田駅南 | K28: 1000
B29: 408001 | C29: 牧之原市 | D29: 800 | I29: 417009 | J29: 六合駅北 | K29: 950
B30: 408002 | C30: 御前崎市 | D30: 1700 | I30: 417010 | J30: 六合駅南 | K30: 650
I31: 417011 | J31: 六合駅東 | K31: 1050
H32: 合 | I32: 409000702009 | J32: 金谷･佐藤 | K32: =SUM(K33:K36) -> 4100 | L32: =SUM(L33:L36) -> 0
I33: 409001 | J33: 五和‐国１BP以北 | K33: 1350
I34: 409002 | J34: 市街地 | K34: 1900
A35: 榛原郡川根： | D35: =D38 -> 3000 | I35: 409003 | J35: 神谷城 | K35: 150
I36: 409004 | J36: 牧之原市 | K36: 700
A37: 扱紙 | C37: 販売店名 （支店） | D37: 扱 数 | E37: 折込枚数 | F37: 摘要
D38: =D39+D40+D41+D42 -> 3000 | E38: =E39+E40+E41+E42 -> 0
A39: 合 | B39: 411000702011 | C39: 家山･工藤 | D39: 1350
A40: 合 | B40: 412000702012 | C40: 下泉･滝澤 | D40: 700
A41: 合 | B41: 413000702013 | C41: 徳山･滝澤 | D41: 500
A42: 合 | B42: 414000702014 | C42: 千頭･住谷 | D42: 450

Sheet 藤枝市･焼津市
A1: ='配布部数一覧（表題入力）'!A1:B1 -> 0
A2: 広告主名 | B2: ='配布部数一覧（表題入力）'!B2:C2 ->  | F2: サイズ | G2: ='配布部数一覧（表題入力）'!E2 -> 0 | K2: 折込日 | L2: ='配布部数一覧（表題入力）'!J2 -> 00:00:00
A3: タイトル | C3: ='配布部数一覧（表題入力）'!B3 -> 0 | F3: 頁 数 | G3: =E9+L9 -> 0 | J3: 枚
A4: 全体摘要 | C4: ='配布部数一覧（表題入力）'!B4 -> 0 | F4: 総 数 | G4: ='配布部数一覧（表題入力）'!K29 -> 0 | J4: 枚 | K4: 納期 | L4: ='配布部数一覧（表題入力）'!J4 -> 00:00:00
A6: 藤枝市： | D6: =D9 -> 30050 | H6: 焼津市： | K6: =K9 -> 30650
A8: 扱紙 | C8: 販売店名 （支店） | D8: 扱 数 | E8: 折込枚数 | F8: 摘要 | H8: 扱紙 | J8: 販売店名 （支店） | K8: 扱 数 | L8: 折込枚数 | M8: 摘要
D9: =D10+D23+D33+D39 -> 30050 | E9: =E10+E23+E33+E39 -> 0 | K9: =K10+K20+K28+K38+K42 -> 30650 | L9: =L10+L20+L28+L38+L42 -> 0
A10: 読毎中静日 | B10: 418000701004 | C10: 藤枝・江崎 | D10: =SUM(D11:D22) -> 11500 | E10: =SUM(E11:E22) -> 0 | H10: 朝中静 | I10: 421000701008 | J10: 焼津・藪崎 | K10: =SUM(K11:K19) -> 15600 | L10: =SUM(L11:L19) -> 0
B11: 418001 | C11: 駅北･駅前 | D11: 1350 | I11: 421001 | J11: 東益津 | K11: 1300
B12: 418002 | C12: 駅南･東部 | D12: 150 | I12: 421002 | J12: 駅北 | K12: 1700
B13: 418003 | C13: 駅南･西部 | D13: 350 | I13: 421003 | J13: 豊田 | K13: 2300
B14: 418004 | C14: 駅南･南部 | D14: 300 | I14: 421004 | J14: 焼津 | K14: 1350
B15: 418005 | C15: 駅南･北部 | D15: 700 | I15: 421005 | J15: 小川 | K15: 1950
B16: 418006 | C16: 志太 | D16: 1050 | I16: 421006 | J16: 石津 | K16: 1500
B17: 418007 | C17: 藤岡 | D17: 550 | I17: 421007 | J17: 和田 | K17: 1900
B18: 418008 | C18: 藤枝 | D18: 2650 | I18: 421008 | J18: 大富 | K18: 2300
B19: 418009 | C19: 西益津 | D19: 600 | I19: 421009 | J19: 大井川下小杉 | K19: 1300
B20: 418010 | C20: 広幡 | D20: 850 | H20: 毎静 | I20: 422000701009 | J20: 焼津・長倉 | K20: =SUM(K21:K27) -> 5300 | L20: =SUM(L21:L27) -> 0
B21: 418011 | C21: 葉梨 | D21: 2000 | I21: 422001 | J21: 浜当目東益津 | K21: 600
B22: 418012 | C22: 瀬戸谷谷稲葉 | D22: 950 | I22: 422002 | J22: 駅北･八楠 | K22: 650
A23: 朝静東産 | B23: 419000701005 | C23: 藤枝・育伸社 | D23: =SUM(D24:D32) -> 12100 | E23: =SUM(E24:E32) -> 0 | I23: 422003 | J23: 小川･豊田 | K23: 1050
B24: 419001 | C24: 駅北･駅前 | D24: 1400 | I24: 422004 | J24: 栄町･本町 | K24: 550
B25: 419002 | C25: 駅南･東部/北部 | D25: 2850 | I25: 422005 | J25: 大富 | K25: 1100
B26: 419003 | C26: 駅南･西部 | D26: 1150 | I26: 422006 | J26: 石津･和田 | K26: 1100
B27: 419004 | C27: 藤枝 | D27: 1400 | I27: 422007 | J27: 大井川下小杉 | K27: 250
B28: 419005 | C28: 藤岡 | D28: 700 | H28: 読静 | I28: 423000701010 | J28: 焼津・塩川 | K28: =SUM(K29:K37) -> 6350 | L28: =SUM(L29:L37) -> 0
B29: 419006 | C29: 西益津 | D29: 600 | I29: 423001 | J29: 東益津 | K29: 600
B30: 419007 | C30: 広幡 | D30: 1500 | I30: 423002 | J30: 駅北 | K30: 700
B31: 419008 | C31: 葉梨 | D31: 500 | I31: 423003 | J31: 豊田 | K31: 1700
B32: 419009 | C32: 志太 | D32: 2000 | I32: 423004 | J32: 焼津 | K32: 500
A33: 読静 | B33: 420000701006 | C33: 藤枝・池谷 | D33: =SUM(D34:D38) -> 3950 | E33: =SUM(E34:E38) -> 0 | I33: 423005 | J33: 小川 | K33: 1100
B34: 420001 | C34: 駅北･駅前 | D34: 350 | I34: 423006 | J34: 石津 | K34: 250
B35: 420002 | C35: 駅南･東部 | D35: 1200 | I35: 423007 | J35: 和田 | K35: 300
B36: 420003 | C36: 駅南･西部 | D36: 800 | I36: 423008 | J36: 大富 | K36: 1100
B37: 420004 | C37: 駅南･南部 | D37: 1050 | I37: 423009 | J37: 大井川下小杉 | K37: 100
B38: 420005 | C38: 駅南･北部 | D38: 550 | H38: 合 | I38: 425000701012 | J38: 大井川・新聞販売 | K38: =SUM(K39:K41) -> 2000 | L38: =SUM(L39:L41) -> 0
A39: 合 | B39: 424000701011 | C39: 岡部・太田 | D39: =SUM(D40:D43) -> 2500 | E39: =SUM(E40:E43) -> 0 | I39: 425001 | J39: 上新田･上泉 | K39: 1100
B40: 424001 | C40: 三輪 | D40: 780 | I40: 425002 | J40: 下江留･吉永 | K40: 350
B41: 424002 | C41: 朝比奈 | D41: 420 | I41: 425003 | J41: 西島中島飯淵 | K41: 550
B42: 424003 | C42: 町 | D42: 1300 | H42: 合 | I42: 426000701013 | J42: 大井川・土井 | K42: =SUM(K43:K45) -> 1400 | L42: =SUM(L43:L45) -> 0
I43: 426001 | J43: 高新田･藤守 | K43: 200
I44: 426002 | J44: 宗高･上小杉 | K44: 650
I45: 426003 | J45: 利右衛門吉永 | K45: 550

Sheet 静岡市①
A1: ='配布部数一覧（表題入力）'!A1:B1 -> 0
A2: 広告主名 | B2: ='配布部数一覧（表題入力）'!B2:C2 ->  | F2: サイズ | G2: ='配布部数一覧（表題入力）'!E2 -> 0 | K2: 折込日 | L2: ='配布部数一覧（表題入力）'!J2 -> 00:00:00
A3: タイトル | C3: ='配布部数一覧（表題入力）'!B3 -> 0 | F3: 頁 数 | G3: =E9+L9 -> 0 | J3: 枚
A4: 全体摘要 | C4: ='配布部数一覧（表題入力）'!B4 -> 0 | F4: 総 数 | G4: ='配布部数一覧（表題入力）'!K29 -> 0 | J4: 枚 | K4: 納期 | L4: ='配布部数一覧（表題入力）'!J4 -> 00:00:00
A6: 静岡市①葵区・駿河区： | D6: =D9+K9 -> 102400
A8: 扱紙 | C8: 販売店名 （支店） | D8: 扱 数 | E8: 折込枚数 | F8: 摘要 | H8: 扱紙 | J8: 販売店名 （支店） | K8: 扱 数 | L8: 折込枚数 | M8: 摘要
D9: =D10+D14+D23+D24+D28+D19 -> 33250 | E9: =E10+E14+E23+E24+E28+E19 -> 0 | K9: =K10+K18 -> 69150 | L9: =L10+L18 -> 0
A10: 中日 | B10: 501000 | C10: 静岡中日・森下 | D10: =SUM(D11:D13) -> 1100 | E10: =SUM(E11:E13) -> 0 | H10: 朝静 | I10: 504000 | J10: 静岡朝日・江河 | K10: =SUM(K11:K17) -> 19600 | L10: =SUM(L11:L17) -> 0
B11: 501001 | C11: 葵区 | D11: 700 | I11: 504001 | J11: 中田店 | K11: 3000
B12: 501002 | C12: 駿河区 | D12: 300 | I12: 504002 | J12: 中島店 | K12: 1300
B13: 501003 | C13: 山間部 | D13: 100 | I13: 504003 | J13: 登呂店 | K13: 3700
A14: 読静 | B14: 506000 | C14: 静岡読売・県庁前 | D14: =SUM(D15:D18) -> 1600 | E14: =SUM(E15:E18) -> 0 | I14: 504004 | J14: 小鹿店 | K14: 3600
B15: 506001 | C15: 本 店 | D15: 800 | I15: 504005 | J15: 八幡店 | K15: 2000
B16: 506002 | C16: 西 店 | D16: 150 | I16: 504006 | J16: おさだ(用宗) | K16: 3300
B17: 506005 | C17: 用宗店 | D17: 350 | I17: 504007 | J17: おさだ(丸子) | K17: 2700
B18: 506006 | C18: 丸子店 | D18: 300 | H18: 毎静 | I18: 502000 | J18: 静岡毎日・江崎 | K18: =SUM(K19:K33) -> 49550 | L18: =SUM(L19:L33) -> 0
B19: 505000 | C19: 静岡読売・駅南 | D19: =SUM(D20:D22) -> 1300 | E19: =SUM(E20:E22) -> 0 | I19: 502003 | J19: 本通店 | K19: 4150
B20: 505001 | C20: 東 店 | D20: 500 | I20: 502005 | J20: 八千代町店 | K20: 3800
B21: 505002 | C21: 南 店 | D21: 400 | I21: 502006 | J21: 平和町店 | K21: 3100
B22: 505003 | C22: 登呂店 | D22: 400 | I22: 502007 | J22: 松富店 | K22: 2700
B23: 507000 | C23: 静岡読売・北部 | D23: 1400 | I23: 502008 | J23: 上土店 | K23: 3500
B24: 508000 | C24: 静岡読売・上土 | D24: =SUM(D25:D27) -> 4450 | E24: =SUM(E25:E27) -> 0 | I24: 502009 | J24: 瀬名店 | K24: 2500
B25: 508001 | C25: 上土店 | D25: 2250 | I25: 502010 | J25: 岳美店 | K25: 3300
B26: 508002 | C26: 瀬名店 | D26: 1900 | I26: 502011 | J26: 羽鳥店 | K26: 2100
B27: 508003 | C27: 麻機店 | D27: 300 | I27: 502012 | J27: 牧ｹ谷店 | K27: 1700
A28: 朝静 | B28: 503000 | C28: 静岡朝日・中央 | D28: =SUM(D29:D38) -> 23400 | E28: =SUM(E29:E38) -> 0 | I28: 502013 | J28: 丸子店 | K28: 3600
B29: 503015 | C29: 松富地区 | D29: 3300 | I29: 502014 | J29: 用宗店 | K29: 3300
B30: 503016 | C30: 篭上地区 | D30: 2000 | I30: 502015 | J30: 南町店 | K30: 3400
B31: 503017 | C31: 本通地区 | D31: 2600 | I31: 502016 | J31: 中田店 | K31: 5600
B32: 503018 | C32: 安東地区 | D32: 4850 | I32: 502017 | J32: 曲金店 | K32: 1400
B33: 503019 | C33: 鷹匠地区 | D33: 1600 | I33: 502019 | J33: 高松店 | K33: 5400
B34: 503020 | C34: 上土地区 | D34: 2500
B35: 503021 | C35: 麻機地区 | D35: 1950
B36: 503022 | C36: 瀬名地区 | D36: 1400
B37: 503023 | C37: 羽鳥地区 | D37: 2100
B38: 503024 | C38: 安倍口地区 | D38: 1100

Sheet 静岡市②
A1: ='配布部数一覧（表題入力）'!A1:B1 -> 0
A2: 広告主名 | B2: ='配布部数一覧（表題入力）'!B2:C2 ->  | F2: サイズ | G2: ='配布部数一覧（表題入力）'!E2 -> 0 | K2: 折込日 | L2: ='配布部数一覧（表題入力）'!J2 -> 00:00:00
A3: タイトル | C3: ='配布部数一覧（表題入力）'!B3 -> 0 | F3: 頁 数 | G3: =E9+L9 -> 0 | J3: 枚
A4: 全体摘要 | C4: ='配布部数一覧（表題入力）'!B4 -> 0 | F4: 総 数 | G4: ='配布部数一覧（表題入力）'!K29 -> 0 | J4: 枚 | K4: 納期 | L4: ='配布部数一覧（表題入力）'!J4 -> 00:00:00
A6: 静岡市②清水区： | D6: =D9+K9 -> 52300
A8: 扱紙 | C8: 販売店名 （支店） | D8: 扱 数 | E8: 折込枚数 | F8: 摘要 | H8: 扱紙 | J8: 販売店名 （支店） | K8: 扱 数 | L8: 折込枚数 | M8: 摘要
D9: =D10+D16+D17+D18 -> 11100 | E9: =E10+E16+E17+E18 -> 0 | K9: =K10+K17+K18+K19+K20+K27 -> 41200 | L9: =L10+L17+L18+L19+L20+L27 -> 0
A10: 読静 | B10: 515000 | C10: 清水・中島 | D10: =SUM(D11:D15) -> 6000 | E10: =SUM(E11:E15) -> 0 | H10: 朝静 | I10: 514000 | J10: 清水・石原 | K10: =SUM(K11:K16) -> 10500 | L10: =SUM(L11:L16) -> 0
B11: 515001 | C11: 浜田地区 | D11: 750 | I11: 514001 | J11: 本 店 | K11: 1850
B12: 515002 | C12: 辻地区 | D12: 1000 | I12: 514002 | J12: 三保店 | K12: 1250
B13: 515003 | C13: 江尻地区 | D13: 1150 | I13: 514003 | J13: 北 店 | K13: 1950
B14: 515004 | C14: 飯田地区 | D14: 1700 | I14: 514004 | J14: 入江店 | K14: 1200
B15: 515005 | C15: 庵原地区 | D15: 1400 | I15: 514005 | J15: 桜ヶ丘店 | K15: 2600
B16: 516000 | C16: 草薙・中島 | D16: 2200 | I16: 514006 | J16: 草薙店 | K16: 1650
B17: 519000 | C17: 興津・あさがお | D17: 1400 | I17: 518000 | J17: 興津・多々良 | K17: 2000
B18: 522000 | C18: 蒲原・あさがお | D18: 1500 | I18: 520000 | J18: 蒲原・有元 | K18: 700
I19: 523000 | J19: 由比・河西 | K19: 1100
H20: 毎静 | I20: 513000 | J20: 清水・シミズ | K20: =SUM(K21:K26) -> 26000 | L20: =SUM(L21:L26) -> 0
I21: 513012 | J21: 入江江尻店 | K21: 3900
I22: 513013 | J22: 飯田高部店 | K22: 4800
I23: 513014 | J23: 岡船越店 | K23: 5200
I24: 513015 | J24: 有度店 | K24: 3550
I25: 513016 | J25: 駒越三保店 | K25: 4600
I26: 513017 | J26: 庵原興津店 | K26: 3950
I27: 521000 | J27: 蒲原・江本 | K27: 900

Sheet 富士宮･富士市
A1: ='配布部数一覧（表題入力）'!A1:B1 -> 0
A2: 広告主名 | B2: ='配布部数一覧（表題入力）'!B2:C2 ->  | F2: サイズ | G2: ='配布部数一覧（表題入力）'!E2 -> 0 | K2: 折込日 | L2: ='配布部数一覧（表題入力）'!J2 -> 00:00:00
A3: タイトル | C3: ='配布部数一覧（表題入力）'!B3 -> 0 | F3: 頁 数 | G3: =E9+L9 -> 0 | J3: 枚
A4: 全体摘要 | C4: ='配布部数一覧（表題入力）'!B4 -> 0 | F4: 総 数 | G4: ='配布部数一覧（表題入力）'!K29 -> 0 | J4: 枚 | K4: 納期 | L4: ='配布部数一覧（表題入力）'!J4 -> 00:00:00
A6: 富士宮市/富士市(吉原・鷹岡)： | D6: =D9+K9 -> 69650
A8: 扱紙 | C8: 販売店名 （支店） | D8: 扱 数 | E8: 折込枚数 | F8: 摘要 | H8: 扱紙 | J8: 販売店名 （支店） | K8: 扱 数 | L8: 折込枚数 | M8: 摘要
D9: =D10+D11+D18+D22+D25+D30 -> 34600 | E9: =E10+E11+E18+E22+E25+E30 -> 0 | K9: =K10+K19+K23+K26+K27+K28+K29+K30 -> 35050 | L9: =L10+L19+L23+L26+L27+L28+L29+L30 -> 0
A10: 東京中日 | B10: 604000 | C10: 富士宮 中西 | D10: 300 | H10: 朝静 | I10: 606000 | J10: 富士吉原 星野 | K10: =SUM(K11:K18) -> 19000 | L10: =SUM(L11:L18) -> 0
A11: 読静 | B11: 605000 | C11: 富士宮 ﾂﾀｳｪﾙ | D11: =SUM(D12:D17) -> 8500 | E11: =SUM(E12:E17) -> 0 | I11: 606001 | J11: 伝法･吉原 | K11: 3350
B12: 605001 | C12: 駅南中央 | D12: 2200 | I12: 606002 | J12: 広見･大淵 | K12: 1550
B13: 605002 | C13: 小泉･富士根 | D13: 1800 | I13: 606003 | J13: 今泉･原田 | K13: 3100
B14: 605003 | C14: 大月線東側 | D14: 850 | I14: 606004 | J14: 富士見台 | K14: 1700
B15: 605004 | C15: 大月線西側 | D15: 1650 | I15: 606005 | J15: 鈴 川 | K15: 1450
B16: 605005 | C16: 北山以北 | D16: 500 | I16: 606006 | J16: 中 里 | K16: 2050
B17: 605006 | C17: 富士市･天間 | D17: 1500 | I17: 606007 | J17: 富士駅北 | K17: 2900
A18: 朝静 | B18: 601000 | C18: 富士宮 中野 | D18: =SUM(D19:D21) -> 4950 | E18: =SUM(E19:E21) -> 0 | I18: 606008 | J18: 富士駅南 | K18: 2900
B19: 601001 | C19: 万 野 | D19: 1600 | H19: 読静中 | I19: 609000 | J19: 富士 雨森 | K19: =SUM(K20:K22) -> 2600 | L19: =SUM(L20:L22) -> 0
B20: 601002 | C20: 淀師・宮原・外神 | D20: 2850 | I20: 609001 | J20: 駅北東部 | K20: 1300
B21: 601003 | C21: 白糸・上井出 | D21: 500 | I21: 609002 | J21: 駅北西部 | K21: 1300
A22: 朝静 | B22: 602000 | C22: 富士宮 南部中野 | D22: =SUM(D23:D24) -> 3150 | E22: =SUM(E23:E24) -> 0 | I22: 609005 | J22: 駅北北部 | K22: 0
B23: 602001 | C23: 中里・野中・星山 | D23: 2450 | H23: 毎静 | I23: 610000 | J23: 富士 田畑 | K23: =SUM(K24:K25) -> 4800 | L23: =SUM(L24:L25) -> 0
B24: 602002 | C24: 芝川･袖野 | D24: 700 | I24: 610001 | J24: 駅 北 | K24: 1200
A25: 毎静 | B25: 603000 | C25: 富士宮 鈴木 | D25: =SUM(D26:D29) -> 9000 | E25: =SUM(E26:E29) -> 0 | I25: 610002 | J25: 駅 南 | K25: 3600
B26: 603001 | C26: 本 店 | D26: 1850 | H26: 朝毎静 | I26: 611000 | J26: 鷹岡 中野 | K26: 1800
B27: 603002 | C27: 大岩店 | D27: 3870 | H27: 読静 | I27: 612000 | J27: 鷹岡 安倍 | K27: 2000
B28: 603003 | C28: 北山以北 | D28: 2080 | H28: 毎朝静 | I28: 613000 | J28: 鷹岡 NP鷹岡 | K28: 1250
B29: 603004 | C29: 芝川･袖野除く | D29: 1200 | H29: 合 | I29: 615000 | J29: 富士川 石井 | K29: 2100
A30: 読静 | B30: 608000 | C30: 吉原 植草 | D30: =SUM(D31:D40) -> 8700 | E30: =SUM(E31:E40) -> 0 | H30: 合 | I30: 614000 | J30: 松野 佐野 | K30: 1500
B31: 608001 | C31: 吉 原 | D31: 600
B32: 608002 | C32: 伝 法 | D32: 1640
B33: 608003 | C33: 今 泉 | D33: 800
B34: 608004 | C34: 富士見台 | D34: 760
B35: 608005 | C35: 神 戸 | D35: 0
B36: 608006 | C36: 広 見 | D36: 1450
B37: 608007 | C37: 大 渕 | D37: 2000
B38: 608008 | C38: 根 方 | D38: 850
B39: 608009 | C39: 田 子 | D39: 600
B40: 608010 | C40: 鈴 川 | D40: 0

Sheet 沼津市
A1: ='配布部数一覧（表題入力）'!A1:B1 -> 0
A2: 広告主名 | B2: ='配布部数一覧（表題入力）'!B2:C2 ->  | F2: サイズ | G2: ='配布部数一覧（表題入力）'!E2 -> 0 | K2: 折込日 | L2: ='配布部数一覧（表題入力）'!J2 -> 00:00:00
A3: タイトル | C3: ='配布部数一覧（表題入力）'!B3 -> 0 | F3: 頁 数 | G3: =E9+L9 -> 0 | J3: 枚
A4: 全体摘要 | C4: ='配布部数一覧（表題入力）'!B4 -> 0 | F4: 総 数 | G4: ='配布部数一覧（表題入力）'!K29 -> 0 | J4: 枚 | K4: 納期 | L4: ='配布部数一覧（表題入力）'!J4 -> 00:00:00
A6: 沼津市： | D6: =D9+K9 -> 49600
A8: 扱紙 | C8: 販売店名 （支店） | D8: 扱 数 | E8: 折込枚数 | F8: 摘要 | H8: 扱紙 | J8: 販売店名 （支店） | K8: 扱 数 | L8: 折込枚数 | M8: 摘要
D9: =D27+D16+D10 -> 40250 | E9: =E27+E16+E10 -> 0 | K9: =K10+K15+K16+K19+K20 -> 9350 | L9: =L10+L15+L16+L19+L20 -> 0
A10: 読静 | B10: 618000 | C10: 沼津 刑部 | D10: =SUM(D11:D15) -> 11700 | E10: =SUM(E11:E15) -> 0 | H10: 読静 | I10: 619000 | J10: 沼津 東部大草 | K10: =SUM(K11:K14) -> 3200 | L10: =SUM(L11:L14) -> 0
B11: 618001 | C11: 高島店 | D11: 3050 | I11: 619001 | J11: 上香貫 | K11: 1250
B12: 618002 | C12: 白銀店 | D12: 2000 | I12: 619002 | J12: 下香貫 | K12: 1180
B13: 618003 | C13: 宮前店 | D13: 3450 | I13: 619003 | J13: 静 浦 | K13: 100
B14: 618004 | C14: 松長店 | D14: 1700 | I14: 619004 | J14: 大平・徳倉 | K14: 670
B15: 618005 | C15: 大岡店 | D15: 1500 | H15: 読静 | I15: 620000 | J15: 沼津西部 木村 | K15: 2100
A16: 朝静 | B16: 617000 | C16: 沼津 星野 | D16: =SUM(D17:D26) -> 14550 | E16: =SUM(E17:E26) -> 0 | H16: 朝読静 | I16: 623000 | J16: 愛鷹 鈴木 | K16: =SUM(K17:K18) -> 2500 | L16: =SUM(L17:L18) -> 0
B17: 617001 | C17: 金岡・沢田・岡宮 | D17: 2350 | I17: 623001 | J17: 東椎路・西椎路 | K17: 1700
B18: 617002 | C18: 駅北中心 | D18: 850 | I18: 623002 | J18: 東原・鳥谷・柳沢 | K18: 800
B19: 617003 | C19: 大 岡 | D19: 2600 | H19: 合 | I19: 625000 | J19: 三津 GAKU | K19: 950
B20: 617004 | C20: 今沢・片浜 | D20: 1550 | H20: 合 | I20: 624000 | J20: 戸田 石原 | K20: 600
B21: 617005 | C21: 駅南中心・千本 | D21: 1100
B22: 617006 | C22: 香 貫 | D22: 2650
B23: 617007 | C23: 静 浦 | D23: 650
B24: 617008 | C24: 清水町徳倉・大平 | D24: 1800
B25: 617009 | C25: 原・浮島 | D25: 900
B26: 617010 | C26: 富士市船津・境 | D26: 100
A27: 毎静 | B27: 616000 | C27: 沼津 柳原 | D27: =SUM(D28:D38) -> 14000 | E27: =SUM(E28:E38) -> 0
B28: 616001 | C28: 駅 北 | D28: 2800
B29: 616002 | C29: 大 岡 | D29: 2100
B30: 616005 | C30: 駅 南 | D30: 1500
B31: 616006 | C31: 片 浜 | D31: 1000
B32: 616007 | C32: 香 貫 | D32: 1600
B33: 616008 | C33: 静浦･口野 | D33: 1000
B34: 616009 | C34: 大平･徳倉 | D34: 800
B35: 616010 | C35: 愛 鷹 | D35: 800
B36: 616011 | C36: 大塚・原・植田 | D36: 1400
B37: 616012 | C37: 根古屋・平沼・石川 | D37: 700
B38: 616013 | C38: 富士市船津・境 | D38: 300

Sheet 三島市･御殿場市･裾野市･駿東郡
A1: ='配布部数一覧（表題入力）'!A1:B1 -> 0
A2: 広告主名 | B2: ='配布部数一覧（表題入力）'!B2:C2 ->  | F2: サイズ | G2: ='配布部数一覧（表題入力）'!E2 -> 0 | K2: 折込日 | L2: ='配布部数一覧（表題入力）'!J2 -> 00:00:00
A3: タイトル | C3: ='配布部数一覧（表題入力）'!B3 -> 0 | F3: 頁 数 | G3: =E9+L9 -> 0 | J3: 枚
A4: 全体摘要 | C4: ='配布部数一覧（表題入力）'!B4 -> 0 | F4: 総 数 | G4: ='配布部数一覧（表題入力）'!K29 -> 0 | J4: 枚 | K4: 納期 | L4: ='配布部数一覧（表題入力）'!J4 -> 00:00:00
A6: 三島市： | D6: =D9 -> 38200 | H6: 御殿場市/裾野市/駿東郡： | K6: =K9 -> 24300
A8: 扱紙 | C8: 販売店名 （支店） | D8: 扱 数 | E8: 折込枚数 | F8: 摘要 | H8: 扱紙 | J8: 販売店名 （支店） | K8: 扱 数 | L8: 折込枚数 | M8: 摘要
D9: =D10+D18+D22 -> 38200 | E9: =E10+E18+E22 -> 0 | K9: =K10+K24+K31 -> 24300 | L9: =L10+L24+L31 -> 0
A10: 合 | B10: 632000 | C10: 三島 MISH | D10: =SUM(D11:D17) -> 27400 | E10: =SUM(E11:E17) -> 0 | H10: 合 | I10: 627000 | J10: 御殿場 勝又 | K10: =SUM(K11:K23) -> 13700 | L10: =SUM(L11:L23) -> 0
B11: 632001 | C11: 旧中郷 | D11: 2200 | I11: 627001 | J11: 町･駅前 | K11: 600
B12: 632002 | C12: 旧市内 | D12: 4500 | I12: 627002 | J12: 町･駅裏 | K12: 1250
B13: 632003 | C13: 谷 田 | D13: 2350 | I13: 627003 | J13: 町･駅北 | K13: 1850
B14: 632004 | C14: 駅 北 | D14: 7400 | I14: 627004 | J14: 町･駅南 | K14: 650
B15: 632005 | C15: 長泉町 | D15: 6100 | I15: 627005 | J15: 町･駅西 | K15: 500
B16: 632006 | C16: 清水町 | D16: 3600 | I16: 627006 | J16: 町･東田中 | K16: 1050
B17: 632007 | C17: 函南町 | D17: 1250 | I17: 627007 | J17: 中山・大坂 | K17: 1450
A18: 読静 | B18: 631000 | C18: 大場 佐伯 | D18: =SUM(D19:D21) -> 5800 | E18: =SUM(E19:E21) -> 0 | I18: 627008 | J18: かまど・中清水 | K18: 850
B19: 631001 | C19: 大 場 | D19: 1500 | I19: 627009 | J19: 板妻・神場 | K19: 1600
B20: 631002 | C20: 函南町 | D20: 2700 | I20: 627010 | J20: 印野･川柳 | K20: 500
B21: 631003 | C21: 韮山･江間 | D21: 1600 | I21: 627011 | J21: 中畑･滝ヶ原 | K21: 1450
A22: 朝静 | B22: 630000 | C22: 大場 望月 | D22: =SUM(D23:D25) -> 5000 | E22: =SUM(E23:E25) -> 0 | I22: 627012 | J22: 高根・上小林 | K22: 1550
B23: 630001 | C23: 大 場 | D23: 1150 | I23: 627013 | J23: 須 走 | K23: 400
B24: 630002 | C24: 函南町 | D24: 3300 | H24: 合 | I24: 628000 | J24: 裾野 田代 | K24: =SUM(K25:K30) -> 8500 | L24: =SUM(L25:L30) -> 0
B25: 630003 | C25: 韮 山 | D25: 550 | I25: 628001 | J25: 東地区 | K25: 2300
I26: 628002 | J26: 西地区 | K26: 2380
I27: 628003 | J27: 深良地区 | K27: 970
I28: 628004 | J28: 富岡地区 | K28: 1990
I29: 628005 | J29: 須山地区 | K29: 470
I30: 628006 | J30: 神山地区 | K30: 390
H31: 合 | I31: 626000 | J31: 小山 勝又 | K31: 2100

Sheet 伊豆市･伊豆の国市･下田市(賀茂郡)
A1: ='配布部数一覧（表題入力）'!A1:B1 -> 0
A2: 広告主名 | B2: ='配布部数一覧（表題入力）'!B2:C2 ->  | F2: サイズ | G2: ='配布部数一覧（表題入力）'!E2 -> 0 | K2: 折込日 | L2: ='配布部数一覧（表題入力）'!J2 -> 00:00:00
A3: タイトル | C3: ='配布部数一覧（表題入力）'!B3 -> 0 | F3: 頁 数 | G3: =E9+L9+L26 -> 0 | J3: 枚
A4: 全体摘要 | C4: ='配布部数一覧（表題入力）'!B4 -> 0 | F4: 総 数 | G4: ='配布部数一覧（表題入力）'!K29 -> 0 | J4: 枚 | K4: 納期 | L4: ='配布部数一覧（表題入力）'!J4 -> 00:00:00
A6: 伊豆市/伊豆の国市： | D6: =D9 -> 16550 | H6: 下田市(賀茂郡)： | K6: =K9 -> 13650
A8: 扱紙 | C8: 販売店名 （支店） | D8: 扱 数 | E8: 折込枚数 | F8: 摘要 | H8: 扱紙 | J8: 販売店名 （支店） | K8: 扱 数 | L8: 折込枚数 | M8: 摘要
D9: =D10+D16+D21+D22+D23+D24+D25 -> 16550 | E9: =E10+E16+E21+E22+E23+E24+E25 -> 0 | K9: =K10+K14+K17+K20 -> 13650 | L9: =L10+L14+L17+L20 -> 0
A10: 毎朝静 | B10: 639000 | C10: 修善寺 佐藤 | D10: =SUM(D11:D15) -> 6500 | E10: =SUM(E11:E15) -> 0 | H10: 読静 | I10: 646000 | J10: 下田 土屋 | K10: =SUM(K11:K13) -> 8800 | L10: =SUM(L11:L13) -> 0
B11: 639001 | C11: 修善寺 | D11: 1600 | I11: 646001 | J11: 下田市 | K11: 6500
B12: 639002 | C12: 中伊豆 | D12: 700 | I12: 646003 | J12: 南伊豆町 | K12: 2000
B13: 639003 | C13: 湯ヶ島北部 | D13: 300 | I13: 646004 | J13: 河津 | K13: 300
B14: 639004 | C14: 伊豆の国市/大仁 | D14: 2300 | H14: 朝静 | I14: 647000 | J14: 下田 千葉 | K14: =SUM(K15:K16) -> 3500 | L14: =SUM(L15:L16) -> 0
B15: 639005 | C15: 伊豆の国市/長岡 | D15: 1600 | I15: 647001 | J15: 下田市 | K15: 2500
A16: 朝静 | B16: 638000 | C16: 修善寺 外川 | D16: =SUM(D17:D20) -> 4600 | E16: =SUM(E17:E20) -> 0 | I16: 647002 | J16: 南伊豆町 | K16: 1000
B17: 638001 | C17: 修善寺 | D17: 2000 | H17: 産経 | I17: 648000 | J17: 下田 萩原 | K17: =SUM(K18:K19) -> 900 | L17: =SUM(L18:L19) -> 0
B18: 638002 | C18: 中伊豆 | D18: 700 | I18: 648001 | J18: 下田市 | K18: 750
B19: 638003 | C19: 天 城 | D19: 400 | I19: 648002 | J19: 南伊豆町 | K19: 150
B20: 638004 | C20: 伊豆の国市/南部 | D20: 1500 | H20: 毎日 | I20: 649000 | J20: 白浜 佐々木 | K20: 450
A21: 朝静 | B21: 633000 | C21: 長岡 清水 | D21: 3700
A22: 合 | B22: 637000 | C22: 湯ヶ島 安藤 | D22: 750
A23: 合 | B23: 636000 | C23: 土肥 矢岸 | D23: 550 | H23: 賀茂郡(西・東海岸)： | K23: =K26 -> 10550
A24: 合 | B24: 635000 | C24: 八木沢 鈴木 | D24: 250
A25: 合 | B25: 634000 | C25: 小下田 山田 | D25: 200 | H25: 扱紙 | J25: 販売店名 （支店） | K25: 扱 数 | L25: 折込枚数 | M25: 摘要
K26: =SUM(K27:K35) -> 10550 | L26: =SUM(L27:L35) -> 0
H27: 毎読静 | I27: 653000 | J27: 熱川 マツモト | K27: 1100
H28: 朝日 | I28: 652000 | J28: 熱川 千葉 | K28: 950
H29: 毎読静 | I29: 655000 | J29: 稲取 マツモト | K29: 1000
H30: 朝静 | I30: 654000 | J30: 稲取 千葉 | K30: 750
H31: 合 | I31: 657000 | J31: 上河津 三澤 | K31: 650
H32: 合 | I32: 656000 | J32: 下河津 千葉 | K32: 1550
H33: 合 | I33: 644000 | J33: 宇久須 矢岸 | K33: 400
H34: 合 | I34: 643000 | J34: 安良里 横田 | K34: 400
H35: 合 | I35: 641000 | J35: 仁科 GAKU | K35: =SUM(K36:K38) -> 3750 | L35: =SUM(L36:L38) -> 0
I36: 641001 | J36: 仁科 | K36: 1150
I37: 641002 | J37: 田子 | K37: 800
I38: 641003 | J38: 松崎 | K38: 1800

Sheet 伊東市･熱海市
A1: ='配布部数一覧（表題入力）'!A1:B1 -> 0
A2: 広告主名 | B2: ='配布部数一覧（表題入力）'!B2:C2 ->  | F2: サイズ | G2: ='配布部数一覧（表題入力）'!E2 -> 0 | K2: 折込日 | L2: ='配布部数一覧（表題入力）'!J2 -> 00:00:00
A3: タイトル | C3: ='配布部数一覧（表題入力）'!B3 -> 0 | F3: 頁 数 | G3: =E9+L9 -> 0 | J3: 枚
A4: 全体摘要 | C4: ='配布部数一覧（表題入力）'!B4 -> 0 | F4: 総 数 | G4: ='配布部数一覧（表題入力）'!K29 -> 0 | J4: 枚 | K4: 納期 | L4: ='配布部数一覧（表題入力）'!J4 -> 00:00:00
A6: 伊東市： | D6: =D9 -> 22050 | H6: 熱海市： | K6: =K9 -> 7250
A8: 扱紙 | C8: 販売店名 （支店） | D8: 扱 数 | E8: 折込枚数 | F8: 摘要 | H8: 扱紙 | J8: 販売店名 （支店） | K8: 扱 数 | L8: 折込枚数 | M8: 摘要
D9: =D15+D20+D25+D10+D30 -> 22050 | E9: =E15+E20+E25+E10+E30 -> 0 | K9: =K10+K15+K16 -> 7250 | L9: =L10+L15+L16 -> 0
A10: 東京中日 | B10: 661000 | C10: 伊東 古谷 | D10: =SUM(D11:D14) -> 2050 | E10: =SUM(E11:E14) -> 0 | H10: 合 | I10: 666000 | J10: 網代 中野 | K10: =SUM(K11:K14) -> 1950 | L10: =SUM(L11:L14) -> 0
B11: 661001 | C11: 市街地 | D11: 800 | I11: 666001 | J11: 網代・和田木 | K11: 750
B12: 661003 | C12: 川 奈 | D12: 700 | I12: 666002 | J12: 中 野 | K12: 270
B13: 661004 | C13: 八幡野 | D13: 300 | I13: 666003 | J13: 下多賀 | K13: 380
B14: 661005 | C14: 宇佐美 | D14: 250 | I14: 666004 | J14: 上多賀 | K14: 550
A15: 読静 | B15: 659000 | C15: 伊東 小杉 | D15: =SUM(D16:D19) -> 6400 | E15: =SUM(E16:E19) -> 0 | H15: 産経 | I15: 665000 | J15: 熱海 佐伯 | K15: 2000
B16: 659001 | C16: 市街地 | D16: 3100 | H16: 朝静 | I16: 664000 | J16: 熱海 中野 | K16: =SUM(K17:K19) -> 3300 | L16: =SUM(L17:L19) -> 0
B17: 659002 | C17: 八幡野 | D17: 1000 | I17: 664001 | J17: 中央町･上宿町他 | K17: 1650
B18: 659003 | C18: 川奈･吉田 | D18: 1600 | I18: 664002 | J18: 伊豆山 | K18: 800
B19: 659004 | C19: 富戸･大宜 | D19: 700 | I19: 664003 | J19: 熱海駅周 | K19: 850
A20: 朝静 | B20: 660000 | C20: 伊東 星野 | D20: =SUM(D21:D24) -> 7500 | E20: =SUM(E21:E24) -> 0
B21: 660001 | C21: 旧市内 | D21: 2550
B22: 660002 | C22: 川奈 | D22: 2900
B23: 660003 | C23: 八幡野 | D23: 1450
B24: 660004 | C24: 宇佐美 | D24: 600
A25: 毎静 | B25: 662000 | C25: 伊東 柳原 | D25: =SUM(D26:D29) -> 4900 | E25: =SUM(E26:E29) -> 0
B26: 662001 | C26: 旧市内 | D26: 2000
B27: 662002 | C27: 川 奈 | D27: 800
B28: 662003 | C28: 八幡野 | D28: 1600
B29: 662004 | C29: 宇佐美 | D29: 500
A30: 読静 | B30: 658000 | C30: 宇佐美 小杉 | D30: 1200
